{"text_format":"2","workbook":"xlsx","n_sheets":2,"sheets":["Sheet1","Sheet2"],"not_rendered":{"charts":0,"images":0,"macros":0,"external_links":0,"defined_names":0,"comments":1,"pivot_tables":0},"unopened":[],"bounds":{"document_bytes":16777216,"sheet_cells":100000,"run_cost":"one","rows_first":2000,"rows_last":500,"rows_between":2000,"halvings":0,"cell_chars":16384,"cell_head_chars":4096},"cells_cut":0,"cells_raw":0,"read":"whole","date_system":"1900"}

{"sheet":"Sheet1","index":0,"n_rows":267,"n_cols":8,"rows_kept":267,"cut":false,"hidden":false,"merged":[]}
["ID","名称Lang","名称","描述Lang","类型","最大等级","图标","解锁英雄星级"]
[101000,"Hero_101_name_skill1","秦始皇普攻","Hero_101_desc_skill1",0,1,"icon_hero_Qinshihuang_skill1",0]
[101100,"Hero_101_name_skill1","秦始皇主动","Hero_101_desc_skill1",2,5,"icon_hero_Qinshihuang_skill1",0]
[101200,"Hero_101_name_skill2","秦始皇被动","Hero_101_desc_skill2",3,5,"icon_hero_Qinshihuang_skill2",1]
[101300,"Hero_101_name_skill3","秦始皇天赋","Hero_101_desc_skill3",1,5,"icon_hero_RichardI_skill3",0]
[101400,"Hero_101_name_skill4","秦始皇专属","Hero_101_desc_skill4",4,5,"icon_hero_Qinshihuang_skill4",2]
[102000,"Hero_102_name_skill1","李舜臣普攻","Hero_102_desc_skill1",0,{"$f":"F2","v":1},"icon_hero_LiShunChen_skill1",0]
[102100,"Hero_102_name_skill1","李舜臣主动","Hero_102_desc_skill1",2,{"$f":"F3","v":5},"icon_hero_LiShunChen_skill1",0]
[102200,"Hero_102_name_skill2","李舜臣被动","Hero_102_desc_skill2",3,{"$f":"F4","v":5},"icon_hero_LiShunChen_skill2",1]
[102300,"Hero_102_name_skill3","李舜臣天赋","Hero_102_desc_skill3",1,{"$f":"F5","v":5},"icon_hero_RichardI_skill3",0]
[102400,"Hero_102_name_skill4","李舜臣专属","Hero_102_desc_skill4",4,{"$f":"F6","v":5},"icon_hero_LiShunChen_skill4",2]
[103000,"Hero_103_name_skill1","居鲁士大帝普攻","Hero_103_desc_skill1",0,{"$f":"F7","v":1},"icon_hero_CyrusTheGreat_skill1",0]
[103100,"Hero_103_name_skill1","居鲁士大帝主动","Hero_103_desc_skill1",2,{"$f":"F8","v":5},"icon_hero_CyrusTheGreat_skill1",0]
[103200,"Hero_103_name_skill2","居鲁士大帝被动","Hero_103_desc_skill2",3,{"$f":"F9","v":5},"icon_hero_CyrusTheGreat_skill2",1]
[103300,"Hero_103_name_skill3","居鲁士大帝天赋","Hero_103_desc_skill3",1,{"$f":"F10","v":5},"icon_hero_RichardI_skill3",0]
[103400,"Hero_103_name_skill4","居鲁士大帝专属","Hero_103_desc_skill4",4,{"$f":"F11","v":5},"icon_hero_CyrusTheGreat_skill4",2]
[104000,"Hero_104_name_skill1","阿育王普攻","Hero_104_desc_skill1",0,{"$f":"F12","v":1},"icon_hero_Ashoka_skill1",0]
[104100,"Hero_104_name_skill1","阿育王主动","Hero_104_desc_skill1",2,{"$f":"F13","v":5},"icon_hero_Ashoka_skill1",0]
[104200,"Hero_104_name_skill2","阿育王被动","Hero_104_desc_skill2",3,{"$f":"F14","v":5},"icon_hero_Ashoka_skill2",1]
[104300,"Hero_104_name_skill3","阿育王天赋","Hero_104_desc_skill3",1,{"$f":"F15","v":5},"icon_hero_RichardI_skill3",0]
[104400,"Hero_104_name_skill4","阿育王专属","Hero_104_desc_skill4",4,{"$f":"F16","v":5},"icon_hero_Ashoka_skill4",2]
[105000,"Hero_105_name_skill1","斯巴达克斯普攻","Hero_105_desc_skill1",0,{"$f":"F17","v":1},"icon_hero_Spartacus_skill1",0]
[105100,"Hero_105_name_skill1","斯巴达克斯主动","Hero_105_desc_skill1",2,{"$f":"F18","v":5},"icon_hero_Spartacus_skill1",0]
[105200,"Hero_105_name_skill2","斯巴达克斯被动","Hero_105_desc_skill2",3,{"$f":"F19","v":5},"icon_hero_Spartacus_skill2",1]
[105300,"Hero_105_name_skill3","斯巴达克斯天赋","Hero_105_desc_skill3",1,{"$f":"F20","v":5},"icon_hero_RichardI_skill3",0]
[105400,"Hero_105_name_skill4","斯巴达克斯专属","Hero_105_desc_skill4",4,{"$f":"F21","v":5},"icon_hero_Spartacus_skill4",2]
[106000,"Hero_106_name_skill1","吉尔伽美什普攻","Hero_106_desc_skill1",0,{"$f":"F22","v":1},"icon_hero_Gilgamesh_skill1",0]
[106100,"Hero_106_name_skill1","吉尔伽美什主动","Hero_106_desc_skill1",2,{"$f":"F23","v":5},"icon_hero_Gilgamesh_skill1",0]
[106200,"Hero_106_name_skill2","吉尔伽美什被动","Hero_106_desc_skill2",3,{"$f":"F24","v":5},"icon_hero_Gilgamesh_skill2",1]
[106300,"Hero_106_name_skill3","吉尔伽美什天赋","Hero_106_desc_skill3",1,{"$f":"F25","v":5},"icon_hero_RichardI_skill3",0]
[106400,"Hero_106_name_skill4","吉尔伽美什专属","Hero_106_desc_skill4",4,{"$f":"F26","v":5},"icon_hero_Gilgamesh_skill4",2]
[107000,"Hero_107_name_skill1","丰臣秀吉普攻","Hero_107_desc_skill1",0,{"$f":"F27","v":1},"icon_hero_ToyotomiHideyoshi_skill1",0]
[107100,"Hero_107_name_skill1","丰臣秀吉主动","Hero_107_desc_skill1",2,{"$f":"F28","v":5},"icon_hero_ToyotomiHideyoshi_skill1",0]
[107200,"Hero_107_name_skill2","丰臣秀吉被动","Hero_107_desc_skill2",3,{"$f":"F29","v":5},"icon_hero_ToyotomiHideyoshi_skill2",1]
[107300,"Hero_107_name_skill3","丰臣秀吉天赋","Hero_107_desc_skill3",1,{"$f":"F30","v":5},"icon_hero_RichardI_skill3",0]
[107400,"Hero_107_name_skill4","丰臣秀吉专属","Hero_107_desc_skill4",4,{"$f":"F31","v":5},"icon_hero_ToyotomiHideyoshi_skill4",2]
[108000,"Hero_204_name_skill1","理查一世普攻","Hero_204_desc_skill1",0,{"$f":"F62","v":1},"icon_hero_RichardI_skill1",0]
[108100,"Hero_204_name_skill1","理查一世主动","Hero_204_desc_skill1",2,{"$f":"F63","v":5},"icon_hero_RichardI_skill1",0]
[108200,"Hero_204_name_skill2","理查一世被动","Hero_204_desc_skill2",3,{"$f":"F64","v":5},"icon_hero_RichardI_skill2",1]
[108300,"Hero_204_name_skill3","理查一世天赋","Hero_204_desc_skill3",1,{"$f":"F65","v":5},"icon_hero_RichardI_skill3",0]
[108400,"Hero_204_name_skill4","理查一世专属","Hero_204_desc_skill4",4,{"$f":"F66","v":5},"icon_hero_RichardI_skill4",2]
[109000,"Hero_109_name_skill1","布狄卡普攻","Hero_109_desc_skill1",0,{"$f":"F67","v":1},"icon_hero_Boudica_skill1",0]
[109100,"Hero_109_name_skill1","布狄卡主动","Hero_109_desc_skill1",2,{"$f":"F68","v":5},"icon_hero_Boudica_skill1",0]
[109200,"Hero_109_name_skill2","布狄卡被动","Hero_109_desc_skill2",3,{"$f":"F69","v":5},"icon_hero_Boudica_skill2",1]
[109300,"Hero_109_name_skill3","布狄卡天赋","Hero_109_desc_skill3",1,{"$f":"F70","v":5},"icon_hero_RichardI_skill3",0]
[109400,"Hero_109_name_skill4","布狄卡专属","Hero_109_desc_skill4",4,{"$f":"F71","v":5},"icon_hero_Boudica_skill4",2]
[110000,"Hero_110_name_skill1","威廉·华莱士普攻","Hero_110_desc_skill1",0,{"$f":"F42","v":1},"icon_hero_WilliamWallace_skill1",0]
[110100,"Hero_110_name_skill1","威廉·华莱士主动","Hero_110_desc_skill1",2,{"$f":"F43","v":5},"icon_hero_WilliamWallace_skill1",0]
[110200,"Hero_110_name_skill2","威廉·华莱士被动","Hero_110_desc_skill2",3,{"$f":"F44","v":5},"icon_hero_WilliamWallace_skill2",1]
[110300,"Hero_110_name_skill3","威廉·华莱士天赋","Hero_110_desc_skill3",1,{"$f":"F45","v":5},"icon_hero_RichardI_skill3",0]
[110400,"Hero_110_name_skill4","威廉·华莱士专属","Hero_110_desc_skill4",4,{"$f":"F46","v":5},"icon_hero_WilliamWallace_skill4",2]
[201000,"Hero_201_name_skill1","织田信长普攻","Hero_201_desc_skill1",0,{"$f":"F47","v":1},"icon_hero_OdaNobunaga_skill1",0]
[201100,"Hero_201_name_skill1","织田信长主动","Hero_201_desc_skill1",2,{"$f":"F48","v":5},"icon_hero_OdaNobunaga_skill1",0]
[201200,"Hero_201_name_skill2","织田信长被动","Hero_201_desc_skill2",3,{"$f":"F49","v":5},"icon_hero_OdaNobunaga_skill2",1]
[201300,"Hero_201_name_skill3","织田信长天赋","Hero_201_desc_skill3",1,{"$f":"F50","v":5},"icon_hero_RichardI_skill3",0]
[201400,"Hero_201_name_skill4","织田信长专属","Hero_201_desc_skill4",4,{"$f":"F51","v":5},"icon_hero_OdaNobunaga_skill4",2]
[202000,"Hero_202_name_skill1","亚历山大普攻","Hero_202_desc_skill1",0,{"$f":"F52","v":1},"icon_hero_Alexander_skill1",0]
[202100,"Hero_202_name_skill1","亚历山大主动","Hero_202_desc_skill1",2,{"$f":"F53","v":5},"icon_hero_Alexander_skill1",0]
[202200,"Hero_202_name_skill2","亚历山大被动","Hero_202_desc_skill2",3,{"$f":"F54","v":5},"icon_hero_Alexander_skill2",1]
[202300,"Hero_202_name_skill3","亚历山大天赋","Hero_202_desc_skill3",1,{"$f":"F55","v":5},"icon_hero_RichardI_skill3",0]
[202400,"Hero_202_name_skill4","亚历山大专属","Hero_202_desc_skill4",4,{"$f":"F56","v":5},"icon_hero_Alexander_skill4",2]
[203000,"Hero_203_name_skill1","萨拉丁普攻","Hero_203_desc_skill1",0,{"$f":"F57","v":1},"icon_hero_Saladin_skill1",0]
[203100,"Hero_203_name_skill1","萨拉丁主动","Hero_203_desc_skill1",2,{"$f":"F58","v":5},"icon_hero_Saladin_skill1",0]
[203200,"Hero_203_name_skill2","萨拉丁被动","Hero_203_desc_skill2",3,{"$f":"F59","v":5},"icon_hero_Saladin_skill2",1]
[203300,"Hero_203_name_skill3","萨拉丁天赋","Hero_203_desc_skill3",1,{"$f":"F60","v":5},"icon_hero_RichardI_skill3",0]
[203400,"Hero_203_name_skill4","萨拉丁专属","Hero_203_desc_skill4",4,{"$f":"F61","v":5},"icon_hero_Saladin_skill4",2]
[204000,"Hero_108_name_skill1","汉尼拔·巴卡普攻","Hero_108_desc_skill1",0,{"$f":"F32","v":1},"icon_hero_HannibalBarca_skill1",0]
[204100,"Hero_108_name_skill1","汉尼拔·巴卡主动","Hero_108_desc_skill1",2,{"$f":"F33","v":5},"icon_hero_HannibalBarca_skill1",0]
[204200,"Hero_108_name_skill2","汉尼拔·巴卡被动","Hero_108_desc_skill2",3,{"$f":"F34","v":5},"icon_hero_HannibalBarca_skill2",1]
[204300,"Hero_108_name_skill3","汉尼拔·巴卡天赋","Hero_108_desc_skill3",1,{"$f":"F35","v":5},"icon_hero_RichardI_skill3",0]
[204400,"Hero_108_name_skill4","汉尼拔·巴卡专属","Hero_108_desc_skill4",4,{"$f":"F36","v":5},"icon_hero_HannibalBarca_skill4",2]
[205000,"Hero_205_name_skill1","花木兰普攻","Hero_205_desc_skill1",0,{"$f":"F37","v":1},"icon_hero_Mulan_skill1",0]
[205100,"Hero_205_name_skill1","花木兰主动","Hero_205_desc_skill1",2,{"$f":"F38","v":5},"icon_hero_Mulan_skill1",0]
[205200,"Hero_205_name_skill2","花木兰被动","Hero_205_desc_skill2",3,{"$f":"F39","v":5},"icon_hero_Mulan_skill2",1]
[205300,"Hero_205_name_skill3","花木兰天赋","Hero_205_desc_skill3",1,{"$f":"F40","v":5},"icon_hero_RichardI_skill3",0]
[205400,"Hero_205_name_skill4","花木兰专属","Hero_205_desc_skill4",4,{"$f":"F41","v":5},"icon_hero_Mulan_skill4",2]
[206000,"Hero_206_name_skill1","兰甘亨普攻","Hero_206_desc_skill1",0,{"$f":"F72","v":1},"icon_hero_Ramkhamhaeng_skill1",0]
[206100,"Hero_206_name_skill1","兰甘亨主动","Hero_206_desc_skill1",2,5,"icon_hero_Ramkhamhaeng_skill1",0]
[206200,"Hero_206_name_skill2","兰甘亨被动","Hero_206_desc_skill2",3,5,"icon_hero_Ramkhamhaeng_skill2",1]
[206300,"Hero_206_name_skill3","兰甘亨天赋","Hero_206_desc_skill3",1,5,"icon_hero_RichardI_skill3",0]
[206400,"Hero_206_name_skill4","兰甘亨专属","Hero_206_desc_skill4",4,5,"icon_hero_Ramkhamhaeng_skill4",2]
[207000,"Hero_207_name_skill1","腓特烈一世普攻","Hero_207_desc_skill1",0,1,"icon_hero_FrederickI_skill1",0]
[207100,"Hero_207_name_skill1","腓特烈一世主动","Hero_207_desc_skill1",2,5,"icon_hero_FrederickI_skill1",0]
[207200,"Hero_207_name_skill2","腓特烈一世被动","Hero_207_desc_skill2",3,5,"icon_hero_FrederickI_skill2",1]
[207300,"Hero_207_name_skill3","腓特烈一世天赋","Hero_207_desc_skill3",1,5,"icon_hero_RichardI_skill3",0]
[207400,"Hero_207_name_skill4","腓特烈一世专属","Hero_207_desc_skill4",4,5,"icon_hero_FrederickI_skill4",2]
[208000,"Hero_208_name_skill1","凯撒普攻","Hero_208_desc_skill1",0,1,"icon_hero_Juliuscaesar_skill1",0]
[208100,"Hero_208_name_skill1","凯撒主动","Hero_208_desc_skill1",2,5,"icon_hero_Juliuscaesar_skill1",0]
[208200,"Hero_208_name_skill2","凯撒被动","Hero_208_desc_skill2",3,5,"icon_hero_Juliuscaesar_skill2",1]
[208300,"Hero_208_name_skill3","凯撒天赋","Hero_208_desc_skill3",1,5,"icon_hero_RichardI_skill3",0]
[208400,"Hero_208_name_skill4","凯撒专属","Hero_208_desc_skill4",4,5,"icon_hero_Juliuscaesar_skill4",2]
[209000,"Hero_209_name_skill1","贞德普攻","Hero_209_desc_skill1",0,1,"icon_hero_JoanOfArc_skill1",0]
[209100,"Hero_209_name_skill1","贞德主动","Hero_209_desc_skill1",2,5,"icon_hero_JoanOfArc_skill1",0]
[209200,"Hero_209_name_skill2","贞德被动","Hero_209_desc_skill2",3,5,"icon_hero_JoanOfArc_skill2",1]
[209300,"Hero_209_name_skill3","贞德天赋","Hero_209_desc_skill3",1,5,"icon_hero_RichardI_skill3",0]
[209400,"Hero_209_name_skill4","贞德专属","Hero_209_desc_skill4",4,5,"icon_hero_JoanOfArc_skill4",2]
[210000,"Hero_210_name_skill1","旃陀罗笈多普攻","Hero_210_desc_skill1",0,1,"icon_hero_Chandragupta_skill1",0]
[210100,"Hero_210_name_skill1","旃陀罗笈多主动","Hero_210_desc_skill1",2,5,"icon_hero_Chandragupta_skill1",0]
[210200,"Hero_210_name_skill2","旃陀罗笈多被动","Hero_210_desc_skill2",3,5,"icon_hero_Chandragupta_skill2",1]
[210300,"Hero_210_name_skill3","旃陀罗笈多天赋","Hero_210_desc_skill3",1,5,"icon_hero_RichardI_skill3",0]
[210400,"Hero_210_name_skill4","旃陀罗笈多专属","Hero_210_desc_skill4",4,5,"icon_hero_Chandragupta_skill4",2]
[301000,"Hero_301_name_skill1","图特摩斯三世普攻","Hero_301_desc_skill1",0,1,"icon_hero_ThutmoseIII_skill1",0]
[301100,"Hero_301_name_skill1","图特摩斯三世主动","Hero_301_desc_skill1",2,5,"icon_hero_ThutmoseIII_skill1",0]
[301200,"Hero_301_name_skill2","图特摩斯三世被动","Hero_301_desc_skill2",3,5,"icon_hero_ThutmoseIII_skill2",1]
[301300,"Hero_301_name_skill3","图特摩斯三世天赋","Hero_301_desc_skill3",1,5,"icon_hero_Cleopatra_skill3",0]
[301400,"Hero_301_name_skill4","图特摩斯三世专属","Hero_301_desc_skill4",4,5,"icon_hero_ThutmoseIII_skill4",2]
[{"$f":"A102+1000","v":302000},"Hero_302_name_skill1","阿尔特米西亚普攻","Hero_302_desc_skill1",0,1,"icon_hero_Artemisia_skill1",0]
[{"$f":"A103+1000","v":302100},"Hero_302_name_skill1","阿尔特米西亚主动","Hero_302_desc_skill1",2,5,"icon_hero_Artemisia_skill1",0]
[302200,"Hero_302_name_skill2","阿尔特米西亚被动","Hero_302_desc_skill2",3,5,"icon_hero_Artemisia_skill2",1]
[302300,"Hero_302_name_skill3","阿尔特米西亚天赋","Hero_302_desc_skill3",1,5,"icon_hero_Cleopatra_skill3",0]
[302400,"Hero_302_name_skill4","阿尔特米西亚专属","Hero_302_desc_skill4",4,5,"icon_hero_Artemisia_skill4",2]
[303000,"Hero_303_name_skill1","克里斯蒂娜普攻","Hero_303_desc_skill1",0,1,"icon_hero_Christina_skill1",0]
[303100,"Hero_303_name_skill1","克里斯蒂娜主动","Hero_303_desc_skill1",2,5,"icon_hero_Christina_skill1",0]
[303200,"Hero_303_name_skill2","克里斯蒂娜被动","Hero_303_desc_skill2",3,5,"icon_hero_Christina_skill2",1]
[303300,"Hero_303_name_skill3","克里斯蒂娜天赋","Hero_303_desc_skill3",1,5,"icon_hero_Cleopatra_skill3",0]
[303400,"Hero_303_name_skill4","克里斯蒂娜专属","Hero_303_desc_skill4",4,5,"icon_hero_Christina_skill4",2]
[304000,"Hero_304_name_skill1","伯里克利普攻","Hero_304_desc_skill1",0,1,"icon_hero_Pericles_skill1",0]
[304100,"Hero_304_name_skill1","伯里克利主动","Hero_304_desc_skill1",2,5,"icon_hero_Pericles_skill1",0]
[304200,"Hero_304_name_skill2","伯里克利被动","Hero_304_desc_skill2",3,5,"icon_hero_Pericles_skill2",1]
[304300,"Hero_304_name_skill3","伯里克利天赋","Hero_304_desc_skill3",1,5,"icon_hero_Cleopatra_skill3",0]
[304400,"Hero_304_name_skill4","伯里克利专属","Hero_304_desc_skill4",4,5,"icon_hero_Pericles_skill4",2]
[305000,"Hero_305_name_skill1","大卫王普攻","Hero_305_desc_skill1",0,1,"icon_hero_KingDavid_skill1",0]
[305100,"Hero_305_name_skill1","大卫王主动","Hero_305_desc_skill1",2,5,"icon_hero_KingDavid_skill1",0]
[305200,"Hero_305_name_skill2","大卫王被动","Hero_305_desc_skill2",3,5,"icon_hero_KingDavid_skill2",1]
[305300,"Hero_305_name_skill3","大卫王天赋","Hero_305_desc_skill3",1,5,"icon_hero_Cleopatra_skill3",0]
[305400,"Hero_305_name_skill4","大卫王专属","Hero_305_desc_skill4",4,5,"icon_hero_KingDavid_skill4",2]
[306000,"Hero_306_name_skill1","克利欧佩特拉普攻","Hero_306_desc_skill1",0,1,"icon_hero_Cleopatra_skill1",0]
[306100,"Hero_306_name_skill1","克利欧佩特拉主动","Hero_306_desc_skill1",2,5,"icon_hero_Cleopatra_skill1",0]
[306200,"Hero_306_name_skill2","克利欧佩特拉被动","Hero_306_desc_skill2",3,5,"icon_hero_Cleopatra_skill2",1]
[306300,"Hero_306_name_skill3","克利欧佩特拉天赋","Hero_306_desc_skill3",1,5,"icon_hero_Cleopatra_skill3",0]
[306400,"Hero_306_name_skill4","克利欧佩特拉专属","Hero_306_desc_skill4",4,5,"icon_hero_Cleopatra_skill4",2]
[307000,"Hero_307_name_skill1","狄多女王普攻","Hero_307_desc_skill1",0,1,"icon_hero_Dido_skill1",0]
[307100,"Hero_307_name_skill1","狄多女王主动","Hero_307_desc_skill1",2,5,"icon_hero_Dido_skill1",0]
[307200,"Hero_307_name_skill2","狄多女王被动","Hero_307_desc_skill2",3,5,"icon_hero_Dido_skill2",1]
[307300,"Hero_307_name_skill3","狄多女王天赋","Hero_307_desc_skill3",1,5,"icon_hero_Cleopatra_skill3",0]
[307400,"Hero_307_name_skill4","狄多女王专属","Hero_307_desc_skill4",4,{"$f":"F131","v":5},"icon_hero_Dido_skill4",2]
[308000,"Hero_308_name_skill1","托米丽司普攻","Hero_308_desc_skill1",0,1,"icon_hero_Tomyris_skill1",0]
[308100,"Hero_308_name_skill1","托米丽司主动","Hero_308_desc_skill1",2,5,"icon_hero_Tomyris_skill1",0]
[308200,"Hero_308_name_skill2","托米丽司被动","Hero_308_desc_skill2",3,5,"icon_hero_Tomyris_skill2",1]
[308300,"Hero_308_name_skill3","托米丽司天赋","Hero_308_desc_skill3",1,5,"icon_hero_Cleopatra_skill3",0]
[308400,"Hero_308_name_skill4","托米丽司专属","Hero_308_desc_skill4",4,5,"icon_hero_Tomyris_skill4",2]
[309000,"Hero_309_name_skill1","特丽布瓦娜普攻","Hero_309_desc_skill1",0,1,"icon_hero_Tribhuwana_skill1",0]
[309100,"Hero_309_name_skill1","特丽布瓦娜主动","Hero_309_desc_skill1",2,5,"icon_hero_Tribhuwana_skill1",0]
[309200,"Hero_309_name_skill2","特丽布瓦娜被动","Hero_309_desc_skill2",3,5,"icon_hero_Tribhuwana_skill2",1]
[309300,"Hero_309_name_skill3","特丽布瓦娜天赋","Hero_309_desc_skill3",1,5,"icon_hero_Cleopatra_skill3",0]
[309400,"Hero_309_name_skill4","特丽布瓦娜专属","Hero_309_desc_skill4",4,5,"icon_hero_Tribhuwana_skill4",2]
[310000,"Hero_310_name_skill1","善德女王普攻","Hero_310_desc_skill1",0,1,"icon_hero_Seondeok_skill1",0]
[310100,"Hero_310_name_skill1","善德女王主动","Hero_310_desc_skill1",2,5,"icon_hero_Seondeok_skill1",0]
[310200,"Hero_310_name_skill2","善德女王被动","Hero_310_desc_skill2",3,5,"icon_hero_Seondeok_skill2",1]
[310300,"Hero_310_name_skill3","善德女王天赋","Hero_310_desc_skill3",1,5,"icon_hero_Cleopatra_skill3",0]
[310400,"Hero_310_name_skill4","善德女王专属","Hero_310_desc_skill4",4,5,"icon_hero_Seondeok_skill4",2]
[301612,"Hero_101_name_skill1","测试英雄的头盔技能1","Hero_101_desc_skill1",3,1,"icon_hero_Cleopatra_skill1"]
[301613,"Hero_101_name_skill1","测试英雄的头盔技能2","Hero_101_desc_skill1",3,1,"icon_hero_Cleopatra_skill2"]
[301614,"Hero_101_name_skill1","测试英雄的头盔技能3","Hero_101_desc_skill1",3,1,"icon_hero_Cleopatra_skill3"]
[301615,"Hero_101_name_skill1","测试英雄的头盔技能4","Hero_101_desc_skill1",3,1,"icon_hero_Cleopatra_skill4"]
[301616,"Hero_101_name_skill2","测试英雄的护甲技能1","Hero_101_desc_skill2",3,1,"icon_hero_Cleopatra_skill1"]
[301617,"Hero_101_name_skill2","测试英雄的护甲技能2","Hero_101_desc_skill2",3,1,"icon_hero_Cleopatra_skill2"]
[301618,"Hero_101_name_skill2","测试英雄的护甲技能3","Hero_101_desc_skill2",3,1,"icon_hero_Cleopatra_skill3"]
[301619,"Hero_101_name_skill2","测试英雄的护甲技能4","Hero_101_desc_skill2",3,1,"icon_hero_Cleopatra_skill4"]
[301620,"Hero_101_name_skill4","测试英雄的战靴技能1","Hero_101_desc_skill4",3,1,"icon_hero_Cleopatra_skill1"]
[301621,"Hero_101_name_skill4","测试英雄的战靴技能2","Hero_101_desc_skill4",3,1,"icon_hero_Cleopatra_skill2"]
[301622,"Hero_101_name_skill4","测试英雄的战靴技能3","Hero_101_desc_skill4",3,1,"icon_hero_Cleopatra_skill3"]
[301623,"Hero_101_name_skill4","测试英雄的战靴技能4","Hero_101_desc_skill4",3,1,"icon_hero_Cleopatra_skill4"]
[10010110,"monster_100101_name_skill1","流寇1（破锋者）","monster_100101_desc_skill1",2,1,"icon_monster_bandits_boss_skill1"]
[10020110,"monster_100201_name_skill1","流寇2（荒野掠食者）","monster_100201_desc_skill1",2,1,"icon_monster_bandits_boss_skill1"]
[10030110,"monster_100301_name_skill1","流寇3(盗猎者)","monster_100301_desc_skill1",2,1,"icon_monster_bandits_boss_skill1"]
[10040110,"monster_100401_name_skill1","流寇4（隐匿之刃）","monster_100401_desc_skill1",2,1,"icon_monster_bandits_boss_skill1"]
[10050110,"monster_100501_name_skill1","流寇5（荒原狂战）","monster_100501_desc_skill1",2,1,"icon_monster_bandits_boss_skill1"]
[10060110,"monster_100601_name_skill1","流寇6","monster_100601_desc_skill1",2,1,"icon_monster_bandits_boss_skill1"]
[11070110,"monster_110701_name_skill1","流寇7","monster_110701_desc_skill1",2,1,"icon_monster_bandits_boss_skill1"]
[11070120,"monster_110701_name_skill2","流寇7","monster_110701_desc_skill2",2,1,"icon_monster_bandits_boss_skill2"]
[11080110,"monster_110801_name_skill1","流寇8","monster_110801_desc_skill1",2,1,"icon_monster_bandits_boss_skill1"]
[11080120,"monster_110801_name_skill2","流寇8","monster_110801_desc_skill2",2,1,"icon_monster_bandits_boss_skill2"]
[12090110,"monster_120901_name_skill1","流寇9（血月屠夫）","monster_120901_desc_skill1",2,1,"icon_monster_bandits_boss_skill1"]
[12090120,"monster_120901_name_skill2","流寇9（血月屠夫）","monster_120901_desc_skill2",2,1,"icon_monster_bandits_boss_skill2"]
[12090130,"monster_120901_name_skill3","流寇9（血月屠夫）","monster_120901_desc_skill3",2,1,"icon_monster_bandits_boss_skill3"]
[12100110,"monster_121001_name_skill1","流寇10（屠戮者）","monster_121001_desc_skill1",2,1,"icon_monster_bandits_boss_skill4"]
[12100120,"monster_121001_name_skill2","流寇10（屠戮者）","monster_121001_desc_skill2",2,1,"icon_monster_bandits_boss_skill5"]
[12100130,"monster_121001_name_skill3","流寇10（屠戮者）","monster_121001_desc_skill3",2,1,"icon_monster_bandits_boss_skill6"]
[20010110,"monster_200101_name_skill1","囚徒1","monster_200101_desc_skill1",2,1,"icon_monster_convicts_boss_skill1"]
[20020110,"monster_200201_name_skill1","囚徒2","monster_200201_desc_skill1",2,1,"icon_monster_convicts_boss_skill1"]
[20030110,"monster_200301_name_skill1","囚徒3","monster_200301_desc_skill1",2,1,"icon_monster_convicts_boss_skill1"]
[20040110,"monster_200401_name_skill1","囚徒4","monster_200401_desc_skill1",2,1,"icon_monster_convicts_boss_skill1"]
[20050110,"monster_200501_name_skill1","囚徒5","monster_200501_desc_skill1",2,1,"icon_monster_convicts_boss_skill1"]
[20060110,"monster_200601_name_skill1","囚徒6","monster_200601_desc_skill1",2,1,"icon_monster_convicts_boss_skill1"]
[21070110,"monster_210701_name_skill1","囚徒7","monster_210701_desc_skill1",2,1,"icon_monster_convicts_boss_skill1"]
[21070120,"monster_210701_name_skill2","囚徒7","monster_210701_desc_skill2",2,1,"icon_monster_convicts_boss_skill2"]
[21080110,"monster_210801_name_skill1","囚徒8","monster_210801_desc_skill1",2,1,"icon_monster_convicts_boss_skill1"]
[21080120,"monster_210801_name_skill2","囚徒8","monster_210801_desc_skill2",2,1,"icon_monster_convicts_boss_skill2"]
[22090110,"monster_220901_name_skill1","囚徒9","monster_220901_desc_skill1",2,1,"icon_monster_convicts_boss_skill1"]
[22090120,"monster_220901_name_skill2","囚徒9","monster_220901_desc_skill2",2,1,"icon_monster_convicts_boss_skill2"]
[22090130,"monster_220901_name_skill3","囚徒9","monster_220901_desc_skill3",2,1,"icon_monster_convicts_boss_skill3"]
[22100110,"monster_221001_name_skill1","囚徒10","monster_221001_desc_skill1",2,1,"icon_monster_convicts_boss_skill4"]
[22100120,"monster_221001_name_skill2","囚徒10","monster_221001_desc_skill2",2,1,"icon_monster_convicts_boss_skill5"]
[22100130,"monster_221001_name_skill3","囚徒10","monster_221001_desc_skill3",2,1,"icon_monster_convicts_boss_skill6"]
[30010110,"monster_300101_name_skill1","叛军1(叛变士兵 ）","monster_300101_desc_skill1",2,1,"icon_monster_rebels_boss_skill1"]
[30020110,"monster_300201_name_skill1","叛军1(溃逃民兵）","monster_300201_desc_skill1",2,1,"icon_monster_rebels_boss_skill1"]
[30030110,"monster_300301_name_skill1","叛军3(佣兵弓手）","monster_300301_desc_skill1",2,1,"icon_monster_rebels_boss_skill1"]
[30040110,"monster_300401_name_skill1","叛军4(佣兵弩手）","monster_300401_desc_skill1",2,1,"icon_monster_rebels_boss_skill1"]
[30050110,"monster_300501_name_skill1","叛军5(斥候骑兵）","monster_300501_desc_skill1",2,1,"icon_monster_rebels_boss_skill1"]
[30060110,"monster_300601_name_skill1","叛军6(流亡骑兵）","monster_300601_desc_skill1",2,1,"icon_monster_rebels_boss_skill1"]
[31070110,"monster_310701_name_skill1","叛军7(掠夺骑士）","monster_310701_desc_skill1",2,1,"icon_monster_rebels_boss_skill1"]
[31070120,"monster_310701_name_skill2","叛军7(掠夺骑士）","monster_310701_desc_skill2",2,1,"icon_monster_rebels_boss_skill2"]
[31080110,"monster_310801_name_skill1","叛军8(叛军神射手）","monster_310801_desc_skill1",2,1,"icon_monster_rebels_boss_skill1"]
[31080120,"monster_310801_name_skill2","叛军8(叛军神射手）","monster_310801_desc_skill2",2,1,"icon_monster_rebels_boss_skill2"]
[32090110,"monster_320901_name_skill1","叛军9（“不屈者”将军）","monster_320901_desc_skill1",2,1,"icon_monster_rebels_boss_skill1"]
[32090120,"monster_320901_name_skill2","叛军9（“不屈者”将军）","monster_320901_desc_skill2",2,1,"icon_monster_rebels_boss_skill2"]
[32090130,"monster_320901_name_skill3","叛军9（“不屈者”将军）","monster_320901_desc_skill3",2,1,"icon_monster_rebels_boss_skill3"]
[32100110,"monster_321001_name_skill1","叛军10(“鹰眼”神射)","monster_321001_desc_skill1",2,1,"icon_monster_rebels_boss_skill1"]
[32100120,"monster_321001_name_skill2","叛军10(“鹰眼”神射)","monster_321001_desc_skill2",2,1,"icon_monster_rebels_boss_skill2"]
[32100130,"monster_321001_name_skill3","叛军10(“鹰眼”神射)","monster_321001_desc_skill3",2,1,"icon_monster_rebels_boss_skill3"]
[40010110,"monster_400101_name_skill1","异教徒1（狂热者）","monster_400101_desc_skill1",2,1,"icon_monster_heretics_boss_skill4"]
[40020110,"monster_400201_name_skill1","异教徒2（忠诚之刃)","monster_400201_desc_skill1",2,1,"icon_monster_heretics_boss_skill4"]
[40030110,"monster_400301_name_skill1","异教徒3（低语者 ）","monster_400301_desc_skill1",2,1,"icon_monster_heretics_boss_skill4"]
[40040110,"monster_400401_name_skill1","异教徒4（禁忌学者 ）","monster_400401_desc_skill1",2,1,"icon_monster_heretics_boss_skill4"]
[40050110,"monster_400501_name_skill1","异教徒5（黄昏守卫 ）","monster_400501_desc_skill1",2,1,"icon_monster_heretics_boss_skill4"]
[40060110,"monster_400601_name_skill1","异教徒6（暗夜骑士）","monster_400601_desc_skill1",2,1,"icon_monster_heretics_boss_skill4"]
[41070110,"monster_410701_name_skill1","异教徒7（暗影守卫）","monster_410701_desc_skill1",2,1,"icon_monster_heretics_boss_skill4"]
[41070120,"monster_410701_name_skill2","异教徒7（暗影守卫）","monster_410701_desc_skill2",2,1,"icon_monster_heretics_boss_skill5"]
[41080110,"monster_410801_name_skill1","异教徒8（审判官）","monster_410801_desc_skill1",2,1,"icon_monster_heretics_boss_skill4"]
[41080120,"monster_410801_name_skill2","异教徒8（审判官）","monster_410801_desc_skill2",2,1,"icon_monster_heretics_boss_skill5"]
[42090110,"monster_420901_name_skill1","异教徒9（绯红主祭)","monster_420901_desc_skill1",2,1,"icon_monster_heretics_boss_skill4"]
[42090120,"monster_420901_name_skill2","异教徒9（绯红主祭)","monster_420901_desc_skill2",2,1,"icon_monster_heretics_boss_skill5"]
[42090130,"monster_420901_name_skill3","异教徒9（绯红主祭)","monster_420901_desc_skill3",2,1,"icon_monster_heretics_boss_skill6"]
[42100110,"monster_421001_name_skill1","异教徒10（灰烬先知）","monster_421001_desc_skill1",2,1,"icon_monster_heretics_boss_skill4"]
[42100120,"monster_421001_name_skill2","异教徒10（灰烬先知）","monster_421001_desc_skill2",2,1,"icon_monster_heretics_boss_skill5"]
[42100130,"monster_421001_name_skill3","异教徒10（灰烬先知）","monster_421001_desc_skill3",2,1,"icon_monster_heretics_boss_skill6"]
[10010100,null,"流寇1（破锋者）普攻",null,0,1,"icon_hero_RichardI_skill1"]
[10020100,null,"流寇2（荒野掠食者）普攻",null,0,1,"icon_hero_RichardI_skill1"]
[10030100,null,"流寇3(盗猎者)普攻",null,0,1,"icon_hero_RichardI_skill1"]
[10040100,null,"流寇4（隐匿之刃）普攻",null,0,1,"icon_hero_RichardI_skill1"]
[10050100,null,"流寇5（荒原狂战）普攻",null,0,1,"icon_hero_RichardI_skill1"]
[10060100,null,"流寇6普攻",null,0,1,"icon_hero_RichardI_skill1"]
[11070100,null,"流寇7普攻",null,0,1,"icon_hero_RichardI_skill1"]
[11080100,null,"流寇8普攻",null,0,1,"icon_hero_RichardI_skill1"]
[12090100,null,"流寇9（血月屠夫）普攻",null,0,1,"icon_hero_RichardI_skill1"]
[12100100,null,"流寇10（屠戮者）普攻",null,0,1,"icon_hero_RichardI_skill1"]
[20010100,null,"囚徒1普攻",null,0,1,"icon_hero_RichardI_skill1"]
[20020100,null,"囚徒2普攻",null,0,1,"icon_hero_RichardI_skill1"]
[20030100,null,"囚徒3普攻",null,0,1,"icon_hero_RichardI_skill1"]
[20040100,null,"囚徒4普攻",null,0,1,"icon_hero_RichardI_skill1"]
[20050100,null,"囚徒5普攻",null,0,1,"icon_hero_RichardI_skill1"]
[20060100,null,"囚徒6普攻",null,0,1,"icon_hero_RichardI_skill1"]
[21070100,null,"囚徒7普攻",null,0,1,"icon_hero_RichardI_skill1"]
[21080100,null,"囚徒8普攻",null,0,1,"icon_hero_RichardI_skill1"]
[22090100,null,"囚徒9普攻",null,0,1,"icon_hero_RichardI_skill1"]
[22100100,null,"囚徒10普攻",null,0,1,"icon_hero_RichardI_skill1"]
[30010100,null,"叛军1(叛变士兵 ）普攻",null,0,1,"icon_hero_RichardI_skill1"]
[30020100,null,"叛军1(溃逃民兵）普攻",null,0,1,"icon_hero_RichardI_skill1"]
[30030100,null,"叛军3(佣兵弓手）普攻",null,0,1,"icon_hero_RichardI_skill1"]
[30040100,null,"叛军4(佣兵弩手）普攻",null,0,1,"icon_hero_RichardI_skill1"]
[30050100,null,"叛军5(斥候骑兵）普攻",null,0,1,"icon_hero_RichardI_skill1"]
[30060100,null,"叛军6(流亡骑兵）普攻",null,0,1,"icon_hero_RichardI_skill1"]
[31070100,null,"叛军7(掠夺骑士）普攻",null,0,1,"icon_hero_RichardI_skill1"]
[31080100,null,"叛军8(叛军神射手）普攻",null,0,1,"icon_hero_RichardI_skill1"]
[32090100,null,"叛军9（“不屈者”将军）普攻",null,0,1,"icon_hero_RichardI_skill1"]
[32100100,null,"叛军10(“鹰眼”神射)普攻",null,0,1,"icon_hero_RichardI_skill1"]
[40010100,null,"异教徒1（狂热者）普攻",null,0,1,"icon_hero_RichardI_skill1"]
[40020100,null,"异教徒2（忠诚之刃)普攻",null,0,1,"icon_hero_RichardI_skill1"]
[40030100,null,"异教徒3（低语者 ）普攻",null,0,1,"icon_hero_RichardI_skill1"]
[40040100,null,"异教徒4（禁忌学者 ）普攻",null,0,1,"icon_hero_RichardI_skill1"]
[40050100,null,"异教徒5（黄昏守卫 ）普攻",null,0,1,"icon_hero_RichardI_skill1"]
[40060100,null,"异教徒6（暗夜骑士）普攻",null,0,1,"icon_hero_RichardI_skill1"]
[41070100,null,"异教徒7（暗影守卫）普攻",null,0,1,"icon_hero_RichardI_skill1"]
[41080100,null,"异教徒8（审判官）普攻",null,0,1,"icon_hero_RichardI_skill1"]
[42090100,null,"异教徒9（绯红主祭)普攻",null,0,1,"icon_hero_RichardI_skill1"]
[42100100,null,"异教徒10（灰烬先知）普攻",null,0,1,"icon_hero_RichardI_skill1"]

{"sheet":"Sheet2","index":1,"n_rows":0,"n_cols":0,"rows_kept":0,"cut":false,"hidden":false,"merged":[]}